Cogmind - Beta 13 @@@ ROGUE MODE // 2024.04.09 @ 15:44:03 Player: zoefiri Result: Destroyed by S-10 Pest with Light Assault Rifle Performance ------------- Evolutions (0) 0 Regions Visited (2) 400 Robots Destroyed (19) 95 Value Destroyed (220) 220 Prototype IDs (0) 0 Alien Tech Used (0) 0 Bonus (0) 0 TOTAL SCORE: 715 Bonus ------- None Cogmind --------- Core Integrity 0/250 Matter 300/300 Energy 125/125 System Corruption 0% Temperature Cool (0) Movement Walking (120) Location -10/Mines Parts ------- > --- POWER (1) -------- Light Ion Engine > --- PROPULSION (2) --- Aluminum Leg Aluminum Leg > --- UTILITY (2) ------ Small Storage Unit Hardened Light Armor Plating > --- WEAPON (2) ------- Mining Claw > --- INVENTORY (8) ---- Light Ion Engine Light Ion Engine Light Ion Engine Flight Unit Light Assault Rifle Light Assault Rifle Datajack Peak State ------------ > --- POWER ------------ Light Ion Engine > --- PROPULSION ------- Aluminum Leg Aluminum Leg > --- UTILITY ---------- Small Storage Unit Hardened Light Armor Plating > --- WEAPON ----------- Light Assault Rifle Mining Claw > --- INVENTORY -------- Light Ion Engine Light Ion Engine Light Ion Engine Flight Unit Light Assault Rifle Light Assault Rifle Datajack [Rating: 8] Favorites ----------- Power Light Ion Engine Engine Light Ion Engine Propulsion Aluminum Leg Treads Light Treads Leg Aluminum Leg Flight Unit Flight Unit Utility Small Storage Unit Storage Small Storage Unit Protection Hardened Light Armor Plating Weapon Light Assault Rifle Energy Gun EM Pulse Gun Ballistic Gun Light Assault Rifle Slashing Weapon Mining Claw Build | -11 -10 -10 ------- Run | Yrd Mat Min Slots Evolved . | . . . Power . | . . . Propulsion . | . . . Utility . | . . . Weapon . | . . . Parts Attached 22 | 4 18 . Power 5 | 1 4 . Engine 5 | 1 4 . Core . | . . . Reactor . | . . . Propulsion 7 | . 7 . Treads 1 | . 1 . Leg 3 | . 3 . Wheel . | . . . Hover . | . . . Flight 3 | . 3 . Utility 4 | 1 3 . Device . | . . . Storage 2 | 1 1 . Processor . | . . . Hackware . | . . . Protection 2 | . 2 . Artifact . | . . . Weapon 6 | 2 4 . Energy Gun 1 | 1 . . Energy Cannon . | . . . Ballistic Gun 4 | 1 3 . Ballistic Cannon . | . . . Launcher . | . . . Special Weapon . | . . . Impact Weapon . | . . . Slashing Weapon 1 | . 1 . Piercing Weapon . | . . . Special Melee Weapon . | . . . Unidentified Prototypes . | . . . Parts Lost 4 | . 3 1 Power 1 | . 1 . Propulsion 1 | . 1 . Utility . | . . . Weapon 2 | . 1 1 Highest Loss Streak 2 | . 2 1 To Critical Strikes . | . . . Average Slot Usage (%) 82 | . 82 100 Engine 13 | . 13 14 Treads 1 | . 1 . Leg 15 | . 15 28 Flight 6 | . 6 . Storage 14 | . 14 14 Protection 1 | . 1 14 Energy Gun 1 | . 1 . Ballistic Gun 17 | . 17 14 Slashing Weapon 8 | . 8 14 Naked Turns . | . . . Heaviest Build 16 | 11 16 16 Greatest Support 20 | 3 20 20 Greatest Overweight (x) 3 | 3 3 . Average Overweight (x) . | 2 . . Largest Inventory Capacity 8 | 8 8 8 Average Capacity 7 | 7 8 8 Most Carried 8 | . 8 7 Average Carried 5 | . 5 7 Final Capacity 8 | 8 8 8 Final Carried 7 | . 7 7 Class Distribution -------------------- 77% | Mutant 22% | Scavenger-Mutant Dominant Class ---------------- Mutant | -10/Materials Mutant | -10/Mines Resources | -11 -10 -10 ----------- Run | Yrd Mat Min Matter Collected 521 | 37 475 9 Remotely . | . . . Salvage Created 551 | . 539 12 Parts 43 | . 42 1 Haulers Intercepted 2 | . 2 . Recyclers Shooed 1 | . 1 . Parts Field Recycled . | . . . Retrieved Matter . | . . . Parts Self-Destructed . | . . . Prevented . | . . . Kills | -11 -10 -10 ------- Run | Yrd Mat Min Combat Hostiles Destroyed 10 | . 9 1 Melee 2 | . 1 1 Guns 8 | . 8 . Classes Destroyed 7 | . 7 . Worker 4 | . 4 . Builder 1 | . 1 . Hauler 2 | . 2 . Recycler 1 | . 1 . Watcher 1 | . 1 . Swarmer 7 | . 6 1 Grunt 3 | . 3 . Best Kill Streak 3 | . 3 1 Combat Bots Only 3 | . 3 1 Max Kills in Single Turn 1 | . 1 1 Gunslinging . | . . . Exploded . | . . . Melee 1 | . 1 1 Uniques/NPCs Destroyed . | . . . Combat | -11 -10 -10 -------- Run | Yrd Mat Min Hostile Shots Fired 130 | . 97 33 Missed 32 | . 27 5 Damage Taken 942 | . 710 232 Core 253 | . 203 50 Absorbed by Shields . | . . . Core Remaining (%) 100 | 100 . . Volleys Fired 68 | . 68 . Largest 2 | . 2 . Hottest 60 | . 60 . Shots Fired 119 | . 119 . Gun 119 | . 119 . Cannon . | . . . Launcher . | . . . Special . | . . . Kinetic 116 | . 116 . Thermal . | . . . Explosive . | . . . Electromagnetic 3 | . 3 . Robot Hit Streak 6 | . 6 . Robot Miss Streak 4 | . 4 . Penetration Max . | . . . Secondary Targets 2 | . 2 . Max Gunslinging Chain 1 | . 1 . Shots Hit Robots 81 | . 77 4 Core Hits 34 | . 33 1 Critical Kills . | . . . Critical Parts Destroyed . | . . . Critical Strikes . | . . . Melee Attacks 23 | . 16 7 Impact . | . . . Slashing 23 | . 16 7 Piercing . | . . . Sneak Attacks 7 | . 6 1 Combat Hostiles 1 | . . 1 Follow-up Attacks . | . . . Damage Inflicted 1164 | . 1042 122 Guns 593 | . 593 . Cannons . | . . . Explosions . | . . . Melee 571 | . 449 122 Ramming . | . . . Kinetic 572 | . 572 . Thermal . | . . . Explosive . | . . . Electromagnetic 21 | . 21 . Impact . | . . . Slashing 571 | . 449 122 Piercing . | . . . Highest Corruption . | . . . Average Corruption . | . . . Corruption Purged . | . . . Corruption Blocked . | . . . Overload Shots . | . . . Overflow Damage 55 | . 51 4 Projectiles . | . . . Explosions . | . . . Melee 55 | . 51 4 Knockbacks . | . . . Impact . | . . . Kinetic . | . . . Secondary . | . . . Self-Inflicted Damage . | . . . Shots . | . . . Rammed . | . . . Targets Rammed . | . . . Kicked . | . . . Crushed . | . . . Highest Temperature 20 | . 20 . Average Temperature 6 | . 6 . Received Heat Transfer 201 | . 201 . Siege Activations . | . . . Robots Corrupted . | . . . Combat Hostiles . | . . . Parts Fried . | . . . Impact Corruptions . | . . . Robots Melted . | . . . Combat Hostiles . | . . . Parts Melted . | . . . Heat Transferred . | . . . Parts Sabotaged . | . . . Parts Stolen . | . . . Parts Stripped . | . . . Power Chain Reactions . | . . . Alert | -11 -10 -10 ------- Run | Yrd Mat Min Peak Influence 144 | . 144 45 Initial . | . . . Average 42 | . 44 26 Maximum Alert Level . | . . . Low Security (%) 100 | 100 100 100 Level 1 . | . . . Level 2 . | . . . Level 3 . | . . . Level 4 . | . . . Level 5 . | . . . High Security . | . . . Max Security . | . . . Squads Dispatched 1 | . 1 . Investigation 1 | . 1 . Extermination . | . . . Reinforcement . | . . . Assault . | . . . Garrison . | . . . Intercept . | . . . Searches Triggered . | . . . Construction Impeded . | . . . Haulers Reinforced . | . . . Active Scanning Responses . | . . . Cargo Convoy Interrupts . | . . . Stealth | -11 -10 -10 --------- Run | Yrd Mat Min Distress Signals 1 | . 1 . Communications Jammed . | . . . Distress Signals . | . . . Times Spotted 22 | . 19 3 Peak Tracking Total 4 | . 4 3 Tactical Retreats . | . . . Traps | -11 -10 -10 ------- Run | Yrd Mat Min Traps Triggered 1 | . 1 . Indirectly . | . . . Trap Hack Attempts . | . . . Triggered . | . . . Disarmed . | . . . Reprogrammed . | . . . Reused . | . . . Traps Extracted . | . . . Installed . | . . . Triggered . | . . . Machines | -11 -10 -10 ---------- Run | Yrd Mat Min Machines Disabled . | . . . Max in Single Turn . | . . . Machines Repaired . | . . . Machines Dismantled . | . . . Machines Sabotaged . | . . . Overloaded Fab Kills . | . . . Hacking | -11 -10 -10 --------- Run | Yrd Mat Min Machines Accessed . | . . . Terminals . | . . . Fabricators . | . . . Repair Stations . | . . . Recycling Units . | . . . Scanalyzers . | . . . Garrison Access . | . . . Total Hacks . | . . . Successful . | . . . Failed . | . . . Catastrophic . | . . . Database Lockouts . | . . . Manual . | . . . Terminals . | . . . Fabricators . | . . . Repair Stations . | . . . Recycling Units . | . . . Scanalyzers . | . . . Garrison Access . | . . . Terminal Hacks . | . . . Fabricator Hacks . | . . . Repair Station Hacks . | . . . Recycling Unit Hacks . | . . . Scanalyzer . | . . . Garrison Access Hacks . | . . . Unauthorized Hacks . | . . . Terminals . | . . . Fabricators . | . . . Repair Stations . | . . . Recycling Units . | . . . Scanalyzers . | . . . Garrison Access . | . . . Data Cores Recovered . | . . . Used . | . . . Hacking Detections . | . . . Full Trace Events . | . . . Feedback Events . | . . . Feedback Blocked . | . . . Robot Schematics Acquired . | . . . Robots Built . | . . . Authchips . | . . . Time . | . . . Total Robot Build Rating . | . . . Part Schematics Acquired . | . . . Parts Built . | . . . Authchips . | . . . Time . | . . . Total Part Build Rating . | . . . Parts Repaired . | . . . Time . | . . . Parts Recycled . | . . . Recycled Matter . | . . . Retrieved Matter . | . . . Retrieved Components . | . . . Parts Scanalyzed . | . . . Part Schematics Acquired . | . . . Parts Damaged . | . . . Bothacking | -11 -10 -10 ------------ Run | Yrd Mat Min Used RIF Installer . | . . . Robots Hacked . | . . . Non-combat . | . . . Combat . | . . . Robot Hacks Applied . | . . . Relay Couplers Released . | . . . Fabnet Peak Effective % . | . . . Robots Rewired . | . . . Allies Hacked . | . . . Hacks Repelled . | . . . Allies | -11 -10 -10 -------- Run | Yrd Mat Min Total Allies . | . . . Largest Group . | . . . Highest-Rated Group . | . . . Highest-Rated Ally . | . . . Total Orders . | . . . Ally Attacks . | . . . Total Damage . | . . . Kills . | . . . Allies Corrupted . | . . . Allies Melted . | . . . Intel | -11 -10 -10 ------- Run | Yrd Mat Min Robot Analysis Total . | . . . Derelict Logs Recovered . | . . . Drone Launches . | . . . Drone Recoveries . | . . . Exploration | -11 -10 -10 ------------- Run | Yrd Mat Min Turns Passed 1272 | 47 1203 22 Spaces Moved 777 | 23 752 2 Core 84 | 23 61 . Treads 28 | . 28 . Legs 531 | . 529 2 Wheels . | . . . Hover . | . . . Flight 134 | . 134 . Fastest Speed 37 | 50 37 120 Average Speed 127 | 184 126 120 Slowest Speed 200 | 200 200 120 Overloaded Moves . | . . . Propulsion Burnouts . | . . . Robots Hopped . | . . . Cave-ins Triggered . | . . . Exploration Rate (%) 32 | 3 90 4 Regions Visited 2 Branch Regions 1 Pre-discovered Areas . | . . . Known Exits Taken . | . . . Unknown Exits Taken 2 | 1 1 . Scrap Searched . | . . . Spaces Dug . | . . . Terrain Destroyed . | . . . Melee . | . . . Projectile . | . . . AOE . | . . . Terrain Rammed . | . . . Walls Destroyed . | . . . Machines Disabled . | . . . Actions | -11 -10 -10 --------- Run | Yrd Mat Min Total 911 | 26 876 9 Wait 9 | . 9 . Move 775 | 22 751 2 Hop . | . . . Pick Up 4 | . 4 . Fast Attach 15 | 4 11 . Attach 1 | . 1 . Detach 3 | . 3 . Swap 6 | . 6 . Drop 7 | . 7 . Fire 68 | . 68 . Melee 23 | . 16 7 Ram . | . . . Kick . | . . . Crush . | . . . Escape Stasis . | . . . Rewire . | . . . Trap . | . . . Miscellaneous . | . . . Route ------- -11/Scrapyard -10/Materials (discovered 5 exits: [*Mat x3] / [*Min x2]) -10/Mines History --------- Turn | Location | Event 16 | -11/Scrapyard | Discovered new exit (range 15) 48 | -11/Scrapyard | Entered Materials 299 | -10/Materials | Discovered new exit (range 5) 305 | -10/Materials | Discovered new exit (range 7) 518 | -10/Materials | Core integrity fell below 50% 684 | -10/Materials | Discovered new exit (range 15) 899 | -10/Materials | Discovered new exit (range 3) 1058 | -10/Materials | Build established: Mutant 1169 | -10/Materials | Discovered new exit (range 8) 1174 | -10/Materials | Core integrity fell below 20% 1251 | -10/Materials | Entered Mines 1273 | -10/Mines | Destroyed by S-10 Pest with Light Assault Rifle Last Messages --------------- Sneak attack on K-01 Serf. Destroyed Wheel. K-01 Serf destroyed. Acquired 20 matter. Acquired 10 matter. Triggered Alarm Trap. An alarm sounds. ALERT: Alarm triggered, dispatching investigation squad. EXIT=FOUND G-34 Mercenary destroyed. U-05 Engineer lays Concrete. K-01 Serf cleans the Material Processor. LOCATION=UNKNOWN GOAL=ESCAPE Sneak attack on S-10 Pest. Destroyed Flight Unit. S-10 Pest destroyed. Acquired 9 matter. Lgt. Assault Rifle destroyed. Map ----- +----------------------------------------------------+ | ?????????????????????????????? | | ?????????????????????????????? | | ?????????????????????????????? | | ?????????????????????????????? | | ?????????????????????????????? | | ?????????????????????????????? | | ?????????????????????????????? | | ?????????????????????????????? | | ?????????????????????????????? | | ?????????????????????????????? | | ?????????????????????????????? | | ?????????????????????????????? | | ?????????????????????????????? | | ?????????????????????????????? | | ?????????????????????????????? | | ?????????????????????????????? | | ?????????????????????????????? | | ?????????????????????????????? | | ?????????????????????????????? | | ?????????????????????????????? | | ?????????????????????????????? | | ?????????????????????????????? | | ?????????????????????????????? | | ?????????????????????????????? | | ?????????????????###########?? | | ?????????????????# s@%#?? | | ?????????????????# """ #?? | | ?????????????????# """ s#?? | | ?????????????????# """ #?? | | ?????????????????# #?? | | ???????????????? """ """ #?? | | ????????????????## """ """ #?? | | ?????????????????# """ """ #?? | | ??????????????????? #?? | | ???????????????????#########?? | | ?????????????????????????????? | | ?????????????????????????????? | | ?????????????????????????????? | | ?????????????????????????????? | | ?????????????????????????????? | | ?????????????????????????????? | | ?????????????????????????????? | | ?????????????????????????????? | | ?????????????????????????????? | | ?????????????????????????????? | | ?????????????????????????????? | | ?????????????????????????????? | | ?????????????????????????????? | | ?????????????????????????????? | | ?????????????????????????????? | +----------------------------------------------------+ Best States ------------- Heat Dissipation 25 Energy Generation 10 Energy Capacity 125 Matter Stores 300 Matter Capacity 300 Sight Range 16 Terrain Scan Density 10 Armor Coverage 150 Evasion (%) 55 Recoil Reduction 1 Item Schematics ----------------- None Robot Schematics ------------------ None Fabricated ------------ Nothing Alien Tech Used ----------------- None Achievements -------------- Oops Challenges ------------ None Game ------ Seed ReactiveIntegrityFrame Manual? 0 Play Time 00:12:10 Cumulative 5.1 hours Start 2024.04.09 @ 13:23:21 End 2024.04.09 @ 15:44:03 Sessions 1 Manual Loads 0 Difficulty Rogue Special Mode None Game No. 11 Rogue 8 Adventurer 0 Explorer 3 Win Type - Total 0 Types 0/0/0/0/0/0/0/0/0 Lore% 11 Gallery% 15 Achievement% 14 Wizard Run 0 Options --------- Layout 1 ASCII 0 Keyboard 0 Movement Arrows Keybinds 0 Fullscreen 0 Font 28/SmallcapsGlow Map View 50x43 Zoom Use 0% Tactical HUD 0 Map Filters NONE Filters NONE Steam 1 RUN: 73b01a24-8abd-4114-a8fe-5b9377d45dfc